bitfinex/quotes_BTCUSD_20240911
["timestamp","ask_amount","ask_price","bid_price","bid_amount"]
[1726043022822,0.002,56644.0,56643.0,0.0041193]
[1726043023689,0.002,56644.0,56643.0,0.0679193]
[1726043028390,0.002,56644.0,56643.0,0.1464193]
[1726043029023,0.001,56644.0,56643.0,0.1464193]
[1726043029510,0.002,56644.0,56643.0,0.1464193]
[1726043029715,0.176507,56655.0,56643.0,0.1464193]
[1726043029925,0.55424801,56656.0,56644.0,0.066]
[1726043029926,0.17594018,56654.0,56644.0,0.066]
[1726043030141,0.176514,56653.0,56644.0,0.066]
[1726043031044,0.35245118,56654.0,56644.0,0.066]
[1726043031703,0.008,56653.0,56644.0,0.066]
[1726043031916,0.016,56653.0,56644.0,0.066]
[1726043032152,0.008,56653.0,56644.0,0.066]
[1726043033686,0.353041,56651.0,56644.0,0.066]
[1726043033905,0.176533,56647.0,56644.0,0.066]
[1726043034793,0.353051,56649.0,56644.0,0.066]
[1726043035011,0.176541,56644.0,56643.0,0.0041193]
[1726043035229,0.35248118,56644.0,56643.0,0.0041193]
[1726043035669,0.70556318,56644.0,56643.0,0.0041193]
[1726043036340,0.70656318,56644.0,56643.0,0.0041193]
[1726043036552,0.70556318,56644.0,56643.0,0.0041193]
[1726043037007,0.35248118,56644.0,56643.0,0.0051193]
[1726043037885,1.11527392,56644.0,56643.0,0.0051193]
[1726043038093,1.06064518,56644.0,56643.0,0.0041193]
[1726043038301,1.41372718,56644.0,56643.0,0.0041193]
[1726043038522,1.47335357,56644.0,56643.0,0.0041193]
[1726043038736,1.47135357,56644.0,56643.0,0.0041193]
[1726043038954,1.46835357,56644.0,56643.0,0.0041193]
[1726043039161,1.47235357,56644.0,56643.0,0.0041193]
[1726043039407,1.46835357,56644.0,56643.0,0.0041193]
[1726043039825,1.47535357,56644.0,56643.0,0.0041193]
[1726043040039,1.46835357,56644.0,56643.0,0.0041193]
[1726043040670,0.76318957,56644.0,56643.0,0.0041193]
[1726043041098,0.76218957,56644.0,56643.0,0.0041193]
[1726043041314,1.11527157,56644.0,56643.0,0.0041193]
[1726043041528,1.12727157,56644.0,56643.0,0.0041193]
[1726043042170,1.12027157,56644.0,56643.0,0.0041193]
[1726043042401,0.76718957,56644.0,56643.0,0.0041193]
[1726043042612,0.77218957,56644.0,56643.0,0.0041193]
[1726043044155,0.41910757,56644.0,56643.0,0.0041193]
[1726043044597,0.77218957,56644.0,56643.0,0.0041193]
[1726043054752,0.24256657,56644.0,56643.0,0.0041193]
[1726043055273,0.41910757,56644.0,56643.0,0.0041193]
[1726043055534,0.77218957,56644.0,56643.0,0.0041193]
[1726043056735,0.41910757,56644.0,56643.0,0.0041193]
[1726043057203,0.24256657,56644.0,56643.0,0.0041193]
[1726043057455,0.18594018,56644.0,56643.0,0.1463193]
[1726043058455,0.01,56644.0,56643.0,0.1463193]
[1726043064926,0.01,56644.0,56643.0,0.3663193]
[1726043067324,0.01,56644.0,56643.0,0.5428633]
[1726043067753,0.005,56644.0,56643.0,0.57415054]
[1726043068711,0.05,56652.0,56651.0,0.312419]
[1726043070280,0.051,56652.0,56651.0,0.313419]
[1726043070996,0.051,56652.0,56651.0,0.315419]
[1726043081437,0.051,56652.0,56651.0,0.317055]
[1726043083577,0.051,56652.0,56651.0,0.004636]
[1726043083837,0.051,56652.0,56651.0,0.181155]
[1726043084431,0.051,56652.0,56651.0,0.004636]
[1726043084637,0.051,56652.0,56651.0,0.181155]
[1726043088796,0.051,56652.0,56651.0,0.181155]
[1726043089008,0.051,56652.0,56651.0,0.004636]
[1726043089250,0.051,56652.0,56651.0,0.181155]
[1726043090622,0.051,56652.0,56651.0,0.004636]
[1726043090623,0.28974018,56652.0,56651.0,0.004636]
[1726043091308,0.81928818,56652.0,56651.0,0.004636]
[1726043092046,0.81828818,56652.0,56651.0,0.001636]
[1726043092493,0.81828818,56652.0,56651.0,0.002636]
[1726043093395,0.46525618,56652.0,56651.0,0.002636]
[1726043093852,0.81828818,56652.0,56651.0,0.002636]
[1726043094287,1.17132018,56652.0,56651.0,0.002636]
[1726043094533,0.46525618,56652.0,56651.0,0.002636]
[1726043096551,0.28874018,56652.0,56651.0,0.002636]
[1726043097173,0.46525618,56652.0,56651.0,0.002636]
[1726043098489,0.28874018,56652.0,56651.0,0.002636]
[1726043099380,0.28874018,56652.0,56651.0,0.179155]
[1726043099832,0.22594018,56652.0,56651.0,0.179155]
[1726043100049,0.22594018,56652.0,56651.0,0.241255]
[1726043100263,0.05,56652.0,56651.0,0.241255]
[1726043100743,0.05,56652.0,56651.0,0.0621]
[1726043104711,0.05,56652.0,56651.0,0.063734]
[1726043104947,0.050817,56652.0,56651.0,0.063734]
[1726043109912,0.050817,56652.0,56651.0,0.001634]
[1726043112174,0.050817,56652.0,56651.0,0.063034]
[1726043112396,0.050817,56652.0,56651.0,0.143034]
[1726043115985,0.050817,56652.0,56651.0,0.26386859]
[1726043116196,0.000817,56652.0,56651.0,0.26386859]
[1726043117523,0.001817,56652.0,56651.0,0.26486859]
[1726043117969,0.000817,56652.0,56651.0,0.26386859]
[1726043118183,0.001817,56652.0,56651.0,0.26486859]
[1726043118397,0.002817,56652.0,56651.0,0.30614865]
[1726043118639,0.001817,56652.0,56651.0,0.30514865]
[1726043118857,0.002817,56652.0,56651.0,0.30614865]
[1726043119107,0.002817,56652.0,56651.0,0.30814865]
[1726043119334,0.002817,56652.0,56651.0,0.36110947]
[1726043119574,0.002817,56652.0,56651.0,0.30814865]
[1726043119789,0.002817,56652.0,56651.0,0.38758989]
[1726043120239,0.002817,56652.0,56651.0,0.65557615]
[1726043120459,0.002817,56652.0,56651.0,0.49673895]
[1726043120676,0.002817,56652.0,56651.0,0.79111182]
[1726043120920,0.002817,56652.0,56651.0,0.87407265]
[1726043121168,0.002817,56652.0,56651.0,0.87358734]
[1726043121380,0.002817,56652.0,56651.0,0.74127577]
[1726043121808,0.002817,56652.0,56651.0,0.83615219]
[1726043122469,0.002817,56652.0,56651.0,0.94194806]
[1726043123414,0.002817,56652.0,56651.0,0.83615219]
[1726043124500,0.002817,56652.0,56651.0,0.91546755]
[1726043125562,0.002817,56652.0,56651.0,0.64800055]
[1726043126521,0.002817,56652.0,56651.0,0.56868519]
[1726043127433,0.002817,56652.0,56651.0,0.62153788]
[1726043127888,0.002817,56652.0,56651.0,0.68153788]
[1726043129242,0.002817,56652.0,56651.0,0.88153788]
[1726043131275,0.002817,56652.0,56651.0,0.88151519]
[1726043131555,0.002817,56652.0,56651.0,0.82868519]
[1726043135083,0.002817,56652.0,56651.0,0.76868519]
[1726043135310,0.002817,56652.0,56651.0,0.82868519]
[1726043136876,0.002817,56652.0,56651.0,0.82668519]
[1726043137086,0.002817,56652.0,56651.0,0.58097418]
[1726043138394,0.002817,56652.0,56651.0,0.47097418]
[1726043142950,0.066217,56652.0,56651.0,0.203634]
[1726043143425,0.242733,56652.0,56651.0,0.203634]
[1726043143646,0.066217,56652.0,56651.0,0.203634]
[1726043143873,0.065217,56652.0,56651.0,0.202634]
[1726043144120,0.064217,56652.0,56651.0,0.201634]
[1726043144328,0.065217,56652.0,56651.0,0.202634]
[1726043144785,0.064217,56652.0,56651.0,0.201634]
[1726043144998,0.064217,56652.0,56651.0,0.202634]
[1726043144999,0.065217,56652.0,56651.0,0.202634]
[1726043145218,0.064217,56652.0,56651.0,0.202634]
[1726043145720,0.064217,56652.0,56651.0,0.203634]
[1726043148455,0.000817,56652.0,56651.0,0.203634]
[1726043149779,0.000817,56652.0,56651.0,0.38866859]
[1726043150262,0.000817,56652.0,56651.0,0.18866859]
[1726043151412,0.000817,56652.0,56651.0,0.003634]
[1726043151640,0.063817,56652.0,56651.0,0.003634]
[1726043153725,0.000817,56652.0,56651.0,0.003634]
[1726043154871,0.177333,56652.0,56651.0,0.003634]
[1726043155082,0.000817,56652.0,56651.0,0.003634]
[1726043155519,0.000817,56652.0,56651.0,0.002634]
[1726043155738,0.065217,56652.0,56651.0,0.002634]
[1726043155983,0.065217,56652.0,56651.0,0.001634]
[1726043157779,0.065217,56652.0,56651.0,0.002634]
[1726043158005,0.065217,56652.0,56651.0,0.003634]
[1726043161996,0.000817,56652.0,56651.0,0.003634]
[1726043162510,0.000817,56652.0,56651.0,0.12446859]
[1726043162773,0.000817,56652.0,56651.0,0.2773685]
[1726043163260,0.000817,56652.0,56651.0,0.26436859]
[1726043163735,0.000817,56652.0,56651.0,0.26336859]
[1726043163942,0.000817,56652.0,56651.0,0.26236859]
[1726043164156,0.002817,56652.0,56651.0,0.26436859]
[1726043164371,0.001817,56652.0,56651.0,0.26336859]
[1726043164813,0.001817,56652.0,56651.0,0.003634]
[1726043165047,0.002817,56652.0,56651.0,0.003634]
[1726043165267,0.002817,56652.0,56651.0,0.223634]
[1726043165693,0.001817,56652.0,56651.0,0.222634]
[1726043165937,0.000817,56652.0,56651.0,0.221634]
[1726043166370,0.001817,56652.0,56651.0,0.224634]
[1726043166831,0.000817,56652.0,56651.0,0.221634]
[1726043167368,0.002817,56652.0,56651.0,0.227634]
[1726043167756,0.001817,56652.0,56651.0,0.224634]
[1726043167978,0.002817,56652.0,56651.0,0.227634]
[1726043169701,0.067417,56652.0,56651.0,0.227634]
[1726043169943,0.243933,56652.0,56651.0,0.227634]
[1726043170383,0.595965,56652.0,56651.0,0.224634]
[1726043170620,0.678065,56652.0,56651.0,0.226634]
[1726043170841,1.20603718,56652.0,56651.0,0.223634]
[1726043171065,1.38352345,56652.0,56651.0,0.223634]
[1726043171312,1.73655545,56652.0,56651.0,0.006634]
[1726043171550,1.73655545,56652.0,56651.0,0.003634]
[1726043171763,1.76421645,56652.0,56651.0,0.003634]
[1726043172465,1.77321645,56652.0,56651.0,0.003634]
[1726043172672,1.76421645,56652.0,56651.0,0.001634]
[1726043172892,1.91699483,56652.0,56651.0,0.001634]
[1726043173094,1.94438403,56652.0,56651.0,0.001634]
[1726043173310,1.91794213,56652.0,56651.0,0.001634]
[1726043173534,1.91694213,56652.0,56651.0,0.001634]
[1726043173950,1.92994213,56652.0,56651.0,0.001634]
[1726043174173,2.01061089,56652.0,56651.0,0.001634]
[1726043174404,1.94488521,56652.0,56651.0,0.001634]
[1726043174639,1.95288521,56652.0,56651.0,0.001634]
[1726043174870,2.01961089,56652.0,56651.0,0.001634]
[1726043175136,2.01160156,56652.0,56651.0,0.001634]
[1726043175369,2.02560156,56652.0,56651.0,0.001634]
[1726043176254,1.97288521,56652.0,56651.0,0.001634]
[1726043176901,1.41834986,56652.0,56651.0,0.001634]
[1726043177127,0.65563418,56652.0,56651.0,0.001634]
[1726043177353,1.00866618,56652.0,56651.0,0.001634]
[1726043177650,0.65563418,56652.0,56651.0,0.001634]
[1726043178037,0.44587318,56652.0,56651.0,0.001634]
[1726043178260,0.79890518,56652.0,56651.0,0.001634]
[1726043180055,0.44587318,56652.0,56651.0,0.001634]
[1726043181400,0.79890518,56652.0,56651.0,0.001634]
[1726043184998,1.15193718,56652.0,56651.0,0.001634]
[1726043187997,0.79890518,56652.0,56651.0,0.001634]
[1726043189660,0.20475718,56652.0,56651.0,0.001634]
[1726043189881,0.20475718,56652.0,56651.0,0.066034]
[1726043190662,0.19075718,56652.0,56651.0,0.066034]
[1726043190903,0.71230518,56652.0,56651.0,0.066034]
[1726043192045,0.35927318,56652.0,56651.0,0.066034]
[1726043192285,0.35327318,56652.0,56651.0,0.001634]
[1726043192505,1.06033718,56652.0,56651.0,0.001634]
[1726043192980,1.12293718,56652.0,56651.0,0.001634]
[1726043196316,1.24380851,56652.0,56651.0,0.001634]
[1726043199647,1.3004481,56652.0,56651.0,0.001634]
[1726043204985,0.9474161,56652.0,56651.0,0.001634]
[1726043205231,0.23439677,56652.0,56651.0,0.066534]
[1726043205704,0.001817,56652.0,56651.0,0.066534]
[1726043206417,0.000817,56652.0,56651.0,0.066534]
[1726043206648,0.001817,56652.0,56651.0,0.066534]
[1726043207595,0.000817,56652.0,56651.0,0.066534]
[1726043208281,0.000817,56652.0,56651.0,0.236534]
[1726043209022,0.000817,56652.0,56651.0,0.243534]
[1726043209724,0.000817,56652.0,56651.0,0.073534]
[1726043212736,0.000817,56652.0,56651.0,0.243534]
[1726043214982,0.000817,56652.0,56651.0,0.073534]
[1726043215430,0.000817,56652.0,56651.0,0.008634]
[1726043221057,0.000817,56652.0,56651.0,0.074934]
[1726043222195,0.000817,56652.0,56651.0,0.244934]
[1726043226139,0.000817,56652.0,56651.0,0.44180533]
[1726043229676,0.000817,56652.0,56651.0,0.320934]
[1726043234968,0.000817,56652.0,56651.0,0.150934]
[1726043237932,0.000817,56652.0,56651.0,0.320934]
[1726043239757,0.000817,56652.0,56651.0,0.44180533]
[1726043239961,0.000817,56652.0,56651.0,0.49363277]
[1726043241345,0.000817,56652.0,56651.0,0.48663277]
[1726043241573,0.001817,56652.0,56651.0,0.49063277]
[1726043241806,0.002817,56652.0,56651.0,0.49463277]
[1726043242402,0.001817,56652.0,56651.0,0.48863277]
[1726043242499,0.002817,56652.0,56651.0,0.49463277]
[1726043242943,0.002817,56652.0,56651.0,0.49063277]
[1726043242944,0.001817,56652.0,56651.0,0.49063277]
[1726043243172,0.001817,56652.0,56651.0,0.36976144]
[1726043243421,0.002817,56652.0,56651.0,0.189634]
[1726043244584,0.001817,56652.0,56651.0,0.177634]
[1726043245073,0.001817,56652.0,56651.0,0.178634]
[1726043245314,0.002817,56652.0,56651.0,0.183634]
[1726043245772,0.001817,56652.0,56651.0,0.178634]
[1726043246240,0.002817,56652.0,56651.0,0.183634]
[1726043251013,0.532365,56652.0,56651.0,0.183634]
[1726043251238,0.66965126,56652.0,56651.0,0.183634]
[1726043251459,0.73405126,56652.0,56651.0,0.183634]
[1726043251677,0.73305126,56652.0,56651.0,0.178634]
[1726043251895,1.26202344,56652.0,56651.0,0.178634]
[1726043252110,1.26202344,56652.0,56651.0,0.008634]
[1726043252331,1.26302344,56652.0,56651.0,0.008634]
[1726043252542,1.26202344,56652.0,56651.0,0.001634]
[1726043253869,1.26102344,56652.0,56651.0,0.001634]
[1726043254109,0.90799144,56652.0,56651.0,0.001634]
[1726043254322,1.26402344,56652.0,56651.0,0.001634]
[1726043254755,0.91099144,56652.0,56651.0,0.001634]
[1726043254969,0.90799144,56652.0,56651.0,0.001634]
[1726043255525,0.90899144,56652.0,56651.0,0.001634]
[1726043256092,0.91199144,56652.0,56651.0,0.001634]
[1726043256335,0.90799144,56652.0,56651.0,0.001634]
[1726043256799,0.91299144,56652.0,56651.0,0.001634]
[1726043257252,0.90799144,56652.0,56651.0,0.001634]
[1726043257712,0.91299144,56652.0,56651.0,0.001634]
[1726043258397,0.91599144,56652.0,56651.0,0.001634]
[1726043258830,0.91299144,56652.0,56651.0,0.001634]
[1726043259297,0.91899144,56652.0,56651.0,0.001634]
[1726043259527,0.78170518,56652.0,56651.0,0.001634]
[1726043260000,0.42867318,56652.0,56651.0,0.001634]
[1726043260249,0.011817,56652.0,56651.0,0.001634]
[1726043262366,0.188333,56652.0,56651.0,0.001634]
[1726043262591,0.011817,56652.0,56651.0,0.001634]
[1726043262820,0.071917,56652.0,56651.0,0.001634]
[1726043266027,0.011817,56652.0,56651.0,0.001634]
[1726043266939,0.188333,56652.0,56651.0,0.001634]
[1726043267414,0.011817,56652.0,56651.0,0.001634]
[1726043268385,0.188333,56652.0,56651.0,0.001634]
[1726043268828,0.541365,56652.0,56651.0,0.001634]
[1726043269060,0.188333,56652.0,56651.0,0.001634]
[1726043271599,0.541365,56652.0,56651.0,0.001634]
[1726043273189,0.541365,56652.0,56651.0,0.067734]
[1726043273423,0.541365,56652.0,56651.0,0.001634]
[1726043275457,0.894397,56652.0,56651.0,0.001634]
[1726043275686,1.07033718,56652.0,56651.0,0.001634]
[1726043275942,1.13203718,56652.0,56651.0,0.001634]
[1726043277572,1.18873448,56652.0,56651.0,0.001634]
[1726043277795,1.07033718,56652.0,56651.0,0.001634]
[1726043278767,0.011817,56652.0,56651.0,0.001634]
[1726043279004,0.188333,56652.0,56651.0,0.001634]
[1726043279238,0.541365,56652.0,56651.0,0.001634]
[1726043280149,0.188333,56652.0,56651.0,0.001634]
[1726043280374,0.541365,56652.0,56651.0,0.001634]
[1726043281565,0.59806643,56652.0,56651.0,0.001634]
[1726043283861,0.77400661,56652.0,56651.0,0.001634]
[1726043284075,1.12703861,56652.0,56651.0,0.001634]
[1726043286612,0.42097461,56652.0,56651.0,0.001634]
[1726043286861,1.12703861,56652.0,56651.0,0.001634]
[1726043288292,0.77400661,56652.0,56651.0,0.001634]
[1726043288525,0.24503443,56652.0,56651.0,0.001634]
[1726043288761,0.06851843,56652.0,56651.0,0.001634]
[1726043289927,0.06851843,56652.0,56651.0,0.065634]
[1726043292284,0.24503443,56652.0,56651.0,0.065634]
[1726043292526,0.24503443,56652.0,56651.0,0.001634]
[1726043292752,0.59806643,56652.0,56651.0,0.001634]
[1726043292969,0.30723443,56652.0,56651.0,0.001634]
[1726043293666,0.24503443,56652.0,56651.0,0.001634]
[1726043294578,0.59806643,56652.0,56651.0,0.001634]
[1726043295232,0.24503443,56652.0,56651.0,0.001634]
[1726043297022,0.24503443,56652.0,56651.0,0.063234]
[1726043299747,0.06851843,56652.0,56651.0,0.063234]
[1726043301227,0.011817,56652.0,56651.0,0.063234]
[1726043304264,0.06856208,56652.0,56651.0,0.063234]
[1726043304478,0.011817,56652.0,56651.0,0.063234]
[1726043312942,0.011817,56652.0,56651.0,0.17760748]
[1726043313186,0.006817,56652.0,56651.0,0.17760748]
[1726043313425,0.011817,56652.0,56651.0,0.17760748]
[1726043313653,0.005817,56652.0,56651.0,0.146234]
[1726043313870,0.006817,56652.0,56651.0,0.146234]
[1726043314093,0.006817,56652.0,56651.0,0.152234]
[1726043314094,0.007817,56652.0,56651.0,0.152234]
[1726043314308,0.001817,56652.0,56651.0,0.152234]
[1726043314529,0.000817,56652.0,56651.0,0.146234]
[1726043314760,0.002817,56652.0,56651.0,0.157234]
[1726043319977,0.002817,56652.0,56651.0,0.27810533]
[1726043322626,0.002817,56652.0,56651.0,0.157234]
[1726043334704,0.002817,56652.0,56651.0,0.074234]
[1726043334915,0.001817,56652.0,56651.0,0.074234]
[1726043339514,0.001817,56652.0,56651.0,0.012634]
[1726043339515,0.61674451,56652.0,56651.0,0.012634]
[1726043339723,1.0265378,56652.0,56651.0,0.012634]
[1726043339932,1.3795698,56652.0,56651.0,0.012634]
[1726043340590,1.3785698,56652.0,56651.0,0.006634]
[1726043340802,1.3777528,56652.0,56651.0,0.001634]
[1726043342121,1.3787528,56652.0,56651.0,0.007634]
[1726043342541,1.3805698,56652.0,56651.0,0.007634]
[1726043342776,1.3795698,56652.0,56651.0,0.001634]
[1726043342998,1.3845698,56652.0,56651.0,0.002634]
[1726043343211,1.3895698,56652.0,56651.0,0.002634]
[1726043344562,1.0365378,56652.0,56651.0,0.002634]
[1726043345451,1.0315378,56652.0,56651.0,0.002634]
[1726043345672,1.0255378,56652.0,56651.0,0.001634]
[1726043345891,1.3825698,56652.0,56651.0,0.001634]
[1726043346103,1.3865698,56652.0,56651.0,0.001634]
[1726043346783,1.7396018,56652.0,56651.0,0.001634]
[1726043349083,1.3865698,56652.0,56651.0,0.001634]
[1726043349297,1.3066698,56652.0,56651.0,0.001634]
[1726043349557,1.24990851,56652.0,56651.0,0.001634]
[1726043350449,0.36127318,56652.0,56651.0,0.001634]
[1726043350959,0.71430518,56652.0,56651.0,0.001634]
[1726043352699,0.36127318,56652.0,56651.0,0.001634]
[1726043353603,0.71430518,56652.0,56651.0,0.001634]
[1726043356036,0.18475718,56652.0,56651.0,0.001634]
[1726043358319,0.008817,56652.0,56651.0,0.001634]
[1726043358533,0.008817,56652.0,56651.0,0.066034]
[1726043359427,0.004817,56652.0,56651.0,0.149034]
[1726043359652,0.000817,56652.0,56651.0,0.149034]
[1726043359874,0.000817,56652.0,56651.0,0.153034]
[1726043360083,0.001817,56652.0,56651.0,0.158034]
[1726043360302,0.001817,56652.0,56651.0,0.20427754]
[1726043360518,0.000817,56652.0,56651.0,0.19927754]
[1726043360752,0.002817,56652.0,56651.0,0.21027754]
[1726043364547,0.002817,56652.0,56651.0,0.44119925]
[1726043364762,0.002817,56652.0,56651.0,0.9508242]
[1726043364987,0.002817,56652.0,56651.0,0.97729193]
[1726043365249,0.002817,56652.0,56651.0,0.84495328]
[1726043365450,0.001817,56652.0,56651.0,0.83895328]
[1726043365663,0.000817,56652.0,56651.0,0.83995328]
[1726043365912,0.001817,56652.0,56651.0,0.83995328]
[1726043366332,0.000817,56652.0,56651.0,0.83395328]
[1726043366544,0.002817,56652.0,56651.0,0.84495328]
[1726043366774,0.001817,56652.0,56651.0,0.83995328]
[1726043366977,0.002817,56652.0,56651.0,0.84495328]
[1726043369364,0.002817,56652.0,56651.0,0.9771129]
[1726043369813,0.002817,56652.0,56651.0,0.9762135]
[1726043371347,0.002817,56652.0,56651.0,0.84405868]
[1726043371569,0.002817,56652.0,56651.0,0.94973416]
[1726043373494,0.002817,56652.0,56651.0,0.84405868]
[1726043374258,0.002817,56652.0,56651.0,0.84386267]
[1726043374457,0.002817,56652.0,56651.0,0.92307655]
[1726043374668,0.002817,56652.0,56651.0,0.92306874]
[1726043376196,0.002817,56652.0,56651.0,0.6574316]
[1726043377369,0.002817,56652.0,56651.0,0.57821772]
[1726043378509,0.002817,56652.0,56651.0,0.63098396]
[1726043380287,0.002817,56652.0,56651.0,0.57821772]
[1726043380533,0.002817,56652.0,56651.0,0.63097276]
[1726043380761,0.002817,56652.0,56651.0,0.75184409]
[1726043381614,0.002817,56652.0,56651.0,0.69908905]
[1726043382143,0.002817,56652.0,56651.0,1.04410661]
[1726043385296,0.002817,56652.0,56651.0,0.69908905]
[1726043399472,0.002817,56652.0,56651.0,0.55168905]
[1726043399704,0.002817,56652.0,56651.0,0.89517237]
[1726043400478,0.002817,56652.0,56651.0,0.81598377]
[1726043401186,0.002817,56652.0,56651.0,0.92156857]
[1726043401400,0.000817,56652.0,56651.0,0.93696477]
[1726043401614,0.000817,56652.0,56651.0,0.94796477]
[1726043401828,0.002817,56652.0,56651.0,0.95796477]
[1726043402089,0.001817,56652.0,56651.0,0.94696477]
[1726043402326,0.000818,56654.0,56653.0,0.09]
[1726043402548,0.000818,56654.0,56653.0,0.45214634]
[1726043402783,0.0657,56653.0,56652.0,0.07925996]
[1726043403045,0.0667,56652.0,56651.0,0.026634]
[1726043403241,0.0667,56652.0,56651.0,0.014634]
[1726043403894,0.0667,56652.0,56651.0,0.001634]
[1726043404343,0.0667,56652.0,56651.0,0.03588453]
[1726043404563,0.001,56652.0,56651.0,0.03588453]
[1726043404769,0.065718,56654.0,56651.0,0.03941453]
[1726043404984,0.065718,56654.0,56653.0,0.12087133]
[1726043405228,0.0676,56652.0,56651.0,0.018634]
[1726043405649,0.0666,56652.0,56651.0,0.010634]
[1726043406092,0.0666,56652.0,56651.0,0.007634]
[1726043406093,0.0656,56652.0,56651.0,0.007634]
[1726043407905,0.0656,56652.0,56651.0,0.001634]
[1726043408550,0.0656,56652.0,56651.0,0.005634]
[1726043408776,0.0656,56652.0,56651.0,0.002634]
[1726043408992,0.0666,56652.0,56651.0,0.010634]
[1726043409213,0.0666,56652.0,56651.0,0.06354507]
[1726043409426,0.0666,56652.0,56651.0,0.06254507]
[1726043409643,0.0676,56652.0,56651.0,0.016634]
[1726043410082,0.0676,56652.0,56651.0,0.06981563]
[1726043410296,0.0676,56652.0,56651.0,0.1227267]
[1726043410515,0.0676,56652.0,56651.0,0.06981563]
[1726043410947,0.0676,56652.0,56651.0,0.14918224]
[1726043412725,0.0676,56652.0,56651.0,0.06981563]
[1726043413375,0.0676,56652.0,56651.0,0.37516636]
[1726043413605,0.0676,56652.0,56651.0,0.09600061]
[1726043413858,0.068417,56652.0,56651.0,0.09600061]
[1726043414084,0.068417,56652.0,56651.0,0.016634]
[1726043414543,0.148617,56652.0,56651.0,0.016634]
[1726043414753,0.32455718,56652.0,56651.0,0.016634]
[1726043414967,0.50107318,56652.0,56651.0,0.016634]
[1726043415647,0.32355718,56652.0,56651.0,0.009634]
[1726043415878,0.32355718,56652.0,56651.0,0.001634]
[1726043415879,0.146617,56652.0,56651.0,0.001634]
[1726043416090,0.146617,56652.0,56651.0,0.002634]
[1726043416091,0.153617,56652.0,56651.0,0.002634]
[1726043416303,0.158617,56652.0,56651.0,0.002634]
[1726043417813,0.151617,56652.0,56651.0,0.001634]
[1726043418243,0.156617,56652.0,56651.0,0.001634]
[1726043418474,0.161617,56652.0,56651.0,0.001634]
[1726043418710,0.146617,56652.0,56651.0,0.001634]
[1726043419393,0.066417,56652.0,56651.0,0.001634]
[1726043419826,0.066417,56652.0,56651.0,0.0237974]
[1726043420261,0.066417,56652.0,56651.0,0.001634]
[1726043421161,0.066417,56652.0,56651.0,0.003634]
[1726043421396,0.000817,56652.0,56651.0,0.003634]
[1726043421683,0.000817,56652.0,56651.0,0.001634]
[1726043421909,0.000817,56652.0,56651.0,0.005634]
[1726043422574,0.064417,56652.0,56651.0,0.005634]
[1726043422790,0.063417,56652.0,56651.0,0.005634]
[1726043423050,0.063417,56652.0,56651.0,0.010634]
[1726043423499,0.063417,56652.0,56651.0,0.005634]
[1726043424398,0.063417,56652.0,56651.0,0.001634]
[1726043428760,0.66748918,56652.0,56651.0,0.001634]
[1726043428986,1.31790851,56652.0,56651.0,0.001634]
[1726043429223,1.19703718,56652.0,56651.0,0.001634]
[1726043430649,1.31790851,56652.0,56651.0,0.001634]
[1726043431091,1.32890851,56652.0,56651.0,0.002634]
[1726043431568,1.32890851,56652.0,56651.0,0.001634]
[1726043431784,1.32890851,56652.0,56651.0,0.002634]
[1726043431785,1.32990851,56652.0,56651.0,0.002634]
[1726043432012,1.32990851,56652.0,56651.0,0.001634]
[1726043432283,1.67794051,56652.0,56651.0,0.002634]
[1726043432509,1.20403718,56652.0,56651.0,0.002634]
[1726043432741,0.85800518,56652.0,56651.0,0.003634]
[1726043433456,0.85100518,56652.0,56651.0,0.002634]
[1726043434111,0.84400518,56652.0,56651.0,0.001634]
[1726043434609,0.85500518,56652.0,56651.0,0.002634]
[1726043434837,0.86700518,56652.0,56651.0,0.003634]
[1726043435065,0.84400518,56652.0,56651.0,0.001634]
[1726043435305,0.85200518,56652.0,56651.0,0.002634]
[1726043435529,0.86000518,56652.0,56651.0,0.003634]
[1726043435981,0.33045718,56652.0,56651.0,0.003634]
[1726043436217,0.016817,56652.0,56651.0,0.003634]
[1726043436464,0.016817,56652.0,56651.0,0.13695586]
[1726043436689,0.016817,56652.0,56651.0,0.12450533]
[1726043437150,0.016817,56652.0,56651.0,0.38680533]
[1726043437390,0.008817,56652.0,56651.0,0.46890533]
[1726043437588,0.008817,56652.0,56651.0,0.46990533]
[1726043437802,0.016817,56652.0,56651.0,0.46890533]
[1726043438018,0.008817,56652.0,56651.0,0.46890533]
[1726043438230,0.008817,56652.0,56651.0,0.52108006]
[1726043438461,0.008817,56652.0,56651.0,0.52308006]
[1726043438917,0.008817,56652.0,56651.0,0.52708006]
[1726043439150,0.008817,56652.0,56651.0,0.52408006]
[1726043440266,0.008817,56652.0,56651.0,0.60450357]
[1726043440482,0.008817,56652.0,56651.0,0.60850357]
[1726043443557,0.008817,56652.0,56651.0,0.68780603]
[1726043443781,0.008817,56652.0,56651.0,0.60850357]
[1726043444005,0.008817,56652.0,56651.0,0.68780603]
[1726043444218,0.008817,56652.0,56651.0,0.96618608]
[1726043444679,0.008817,56652.0,56651.0,1.14212626]
[1726043444973,0.008817,56652.0,56651.0,1.2548238]
[1726043445192,0.008817,56652.0,56651.0,1.38699457]
[1726043445419,0.008817,56652.0,56651.0,1.3866605]
[1726043445638,0.000817,56652.0,56651.0,1.3826605]
[1726043445858,0.001817,56652.0,56651.0,1.3946605]
[1726043446291,0.000817,56652.0,56651.0,1.3826605]
[1726043446496,0.000817,56652.0,56651.0,1.3786605]
[1726043447067,0.001817,56652.0,56651.0,1.3896605]
[1726043447273,0.001817,56652.0,56651.0,1.18836566]
[1726043447681,0.002817,56652.0,56651.0,1.20036566]
[1726043448126,0.001817,56652.0,56651.0,1.20453873]
[1726043448327,0.002817,56652.0,56651.0,1.21853873]
[1726043448696,0.003817,56652.0,56651.0,1.23253873]
[1726043448903,0.003817,56652.0,56651.0,1.23053873]
[1726043449106,0.003817,56652.0,56651.0,1.23253873]
[1726043450638,0.003817,56652.0,56651.0,1.10037097]
[1726043452398,0.003817,56652.0,56651.0,1.10027897]